bitfinex-derivatives/quotes_BTCF0:USTF0_20250325
["timestamp","ask_amount","ask_price","bid_price","bid_amount"]
[1742936391945,0.33247574,87864.0,87863.0,0.76059004]
[1742936393847,0.02005201,87864.0,87863.0,0.76059004]
[1742936394254,0.13383921,87864.0,87863.0,2.26059004]
[1742936394448,0.02005201,87864.0,87863.0,2.26059004]
[1742936394657,0.13383921,87864.0,87863.0,2.26059004]
[1742936396062,0.13303921,87864.0,87863.0,2.26059004]
[1742936396656,0.02013201,87864.0,87863.0,2.26059004]
[1742936396852,0.01925201,87864.0,87863.0,2.26059004]
[1742936398459,0.01935023,87864.0,87863.0,2.26059004]
[1742936399860,0.13313743,87864.0,87863.0,2.26059004]
[1742936400059,0.01935023,87864.0,87863.0,2.26059004]
[1742936400255,0.13313743,87864.0,87863.0,2.26059004]
[1742936400454,0.31503743,87864.0,87863.0,2.26059004]
[1742936401052,0.31503743,87864.0,87863.0,2.14835004]
[1742936401258,0.31501977,87864.0,87863.0,2.26055004]
[1742936401455,0.31101977,87864.0,87863.0,2.26055004]
[1742936401752,0.31201977,87864.0,87863.0,2.14835004]
[1742936401960,0.31201977,87864.0,87863.0,2.26055004]
[1742936404363,0.31201977,87864.0,87863.0,2.30571502]
[1742936404747,0.3030872,87864.0,87863.0,2.30571502]
[1742936404947,0.0989,87864.0,87863.0,2.30571502]
[1742936405151,0.0074,87864.0,87863.0,2.30571502]
[1742936405559,0.0074,87864.0,87863.0,0.37516395]
[1742936405560,0.2168872,87864.0,87863.0,0.37516395]
[1742936405762,0.4014672,87864.0,87863.0,0.32999897]
[1742936405953,0.8090672,87864.0,87863.0,0.32999897]
[1742936407952,0.8090672,87864.0,87863.0,0.51639897]
[1742936408350,0.8090672,87864.0,87863.0,0.32999897]
[1742936408750,0.8090672,87864.0,87863.0,0.42679897]
[1742936409258,0.97726941,87864.0,87863.0,0.42679897]
[1742936409453,0.88766941,87864.0,87863.0,0.42679897]
[1742936409662,0.67818221,87864.0,87863.0,0.63018747]
[1742936409854,0.79196941,87864.0,87863.0,0.63018747]
[1742936410056,0.67818221,87864.0,87863.0,0.74238747]
[1742936410264,0.58408221,87864.0,87863.0,0.74238747]
[1742936410464,0.58408221,87864.0,87863.0,0.86686997]
[1742936410762,0.58408221,87864.0,87863.0,0.87550674]
[1742936410957,0.17648221,87864.0,87863.0,0.87550674]
[1742936411353,0.17648221,87864.0,87863.0,0.83034172]
[1742936411755,0.17648221,87864.0,87863.0,0.87550514]
[1742936412151,0.11007867,87871.0,87870.0,0.1137794]
[1742936412365,0.11007867,87871.0,87870.0,0.99034282]
[1742936412562,0.00017068,87872.0,87871.0,0.1137781]
[1742936412767,0.00017068,87872.0,87871.0,2.42309673]
[1742936412768,0.00077069,87872.0,87871.0,2.42309673]
[1742936412970,0.00017068,87872.0,87871.0,2.42309673]
[1742936414767,0.00217068,87872.0,87871.0,2.42309673]
[1742936422265,0.00217068,87872.0,87871.0,2.32309673]
[1742936422777,0.00217068,87872.0,87871.0,2.57309673]
[1742936426668,1e-07,87896.0,87895.0,0.113747]
[1742936426872,0.23823451,87922.0,87900.0,0.1137406]
[1742936427164,0.113738,87902.0,87901.0,0.27106272]
[1742936427367,0.113738,87902.0,87901.0,2.1864993]
[1742936427572,0.2826,87903.0,87902.0,0.113738]
[1742936427773,0.3963367,87903.0,87902.0,0.614338]
[1742936427982,0.2826,87903.0,87902.0,0.614338]
[1742936428372,0.2826,87903.0,87902.0,0.62451992]
[1742936428775,0.39588166,87903.0,87902.0,0.72141992]
[1742936428974,0.28214496,87903.0,87902.0,0.72141992]
[1742936431380,0.28214496,87903.0,87902.0,0.72101992]
[1742936433267,0.39588166,87903.0,87902.0,0.72101992]
[1742936433772,0.39542662,87903.0,87902.0,0.72101992]
[1742936434473,0.28168992,87903.0,87902.0,0.72101992]
[1742936434970,0.28168992,87903.0,87902.0,0.81151992]
[1742936435171,0.19208992,87903.0,87902.0,0.81151992]
[1742936435970,0.19208992,87903.0,87902.0,0.81111992]
[1742936436170,0.09458992,87903.0,87902.0,2.31111992]
[1742936436370,0.09458992,87903.0,87902.0,2.40391992]
[1742936436581,0.20832662,87903.0,87902.0,2.10768192]
[1742936436883,0.20832662,87903.0,87902.0,0.73747992]
[1742936437076,0.09518993,87903.0,87902.0,0.73747992]
[1742936437376,0.09458992,87903.0,87902.0,2.33157992]
[1742936438480,0.09413488,87903.0,87902.0,2.33157992]
[1742936440890,0.09413488,87903.0,87902.0,2.33117992]
[1742936441089,0.09413488,87903.0,87902.0,2.43085992]
[1742936443369,0.09367984,87903.0,87902.0,2.33105992]
[1742936444086,0.18887984,87903.0,87902.0,2.33105992]
[1742936444382,0.18887984,87903.0,87902.0,2.33109992]
[1742936445984,0.18887984,87903.0,87902.0,2.33069992]
[1742936448087,0.18887984,87903.0,87902.0,2.42309992]
[1742936448875,0.1884248,87903.0,87902.0,2.42309992]
[1742936451591,0.1884248,87903.0,87902.0,2.42269992]
[1742936453994,0.18796976,87903.0,87902.0,2.42269992]
[1742936455997,0.18796976,87903.0,87902.0,2.42209992]
[1742936456391,0.18796976,87903.0,87902.0,2.42169992]
[1742936457301,0.10074264,87908.0,87907.0,0.1137315]
[1742936457491,0.10134265,87908.0,87907.0,0.5943315]
[1742936457796,0.10074264,87908.0,87907.0,0.83230192]
[1742936457994,0.10142264,87908.0,87907.0,0.83230192]
[1742936458194,0.10142264,87908.0,87907.0,2.43230192]
[1742936458394,0.10074264,87908.0,87907.0,2.43230192]
[1742936459691,0.10074264,87908.0,87907.0,2.33230192]
[1742936459901,0.0004,87912.0,87909.0,0.1137289]
[1742936460090,0.0004,87912.0,87909.0,0.9651289]
[1742936460403,0.00081068,87910.0,87909.0,1.20079932]
[1742936460603,0.00081068,87910.0,87909.0,2.70079932]
[1742936460796,0.00017068,87910.0,87909.0,2.70079932]
[1742936463798,0.00017068,87910.0,87909.0,2.80079932]
[1742936464105,0.10074264,87913.0,87912.0,0.213725]
[1742936464291,0.06094865,87913.0,87912.0,0.806445]
[1742936464495,0.06094865,87913.0,87912.0,1.03581542]
[1742936464695,0.30130415,87923.0,87922.0,0.1137121]
[1742936464999,0.30194415,87923.0,87922.0,0.73100252]
[1742936465298,0.30194415,87923.0,87922.0,2.3731321]
[1742936465505,0.30130415,87923.0,87922.0,2.3725321]
[1742936465709,0.24444865,87923.0,87922.0,2.3725321]
[1742936466306,0.06094865,87923.0,87922.0,2.3725321]
[1742936466515,0.06094865,87923.0,87922.0,2.42796449]
[1742936469812,0.0896,87927.0,87926.0,0.1137069]
[1742936470011,0.0896,87927.0,87926.0,0.9645069]
[1742936470195,0.0896,87927.0,87926.0,1.1523069]
[1742936470401,0.0896,87927.0,87926.0,1.19802279]
[1742936470713,0.00017068,87931.0,87927.0,0.1137056]
[1742936471006,0.00017068,87931.0,87927.0,1.61506098]
[1742936471207,0.00017068,87931.0,87927.0,1.80276098]
[1742936471511,0.00017068,87931.0,87927.0,3.2576856]
[1742936471707,0.00017068,87931.0,87927.0,3.30274953]
[1742936474214,0.00017068,87931.0,87927.0,3.2576856]
[1742936476008,0.00017068,87931.0,87927.0,1.8698056]
[1742936487639,0.00017068,87931.0,87927.0,2.07397212]
[1742936488937,0.09857068,87931.0,87927.0,2.07397212]
[1742936489649,0.0919,87930.0,87927.0,2.07397212]
[1742936490142,0.0962,87929.0,87927.0,2.07397212]
[1742936490444,0.0962,87929.0,87927.0,2.2306056]
[1742936490641,0.0923,87928.0,87927.0,2.2306056]
[1742936492637,0.0923,87928.0,87927.0,2.27570826]
[1742936494142,0.0923,87928.0,87927.0,2.54718051]
[1742936494947,0.00017068,87931.0,87927.0,2.54718051]
[1742936494948,0.00017068,87931.0,87930.0,0.1137018]
[1742936495133,0.00017068,87931.0,87930.0,0.72948446]
[1742936495333,0.00017068,87931.0,87930.0,1.02138446]
[1742936496343,0.0984,87939.0,87938.0,0.1136914]
[1742936496645,0.09900001,87939.0,87938.0,1.1683314]
[1742936496946,0.09900001,87939.0,87938.0,1.2647314]
[1742936499137,0.09900001,87939.0,87938.0,1.1647314]
[1742936501438,0.09900001,87939.0,87938.0,0.9550914]
[1742936501634,0.09900001,87939.0,87938.0,1.0681714]
[1742936501845,0.21269011,87939.0,87938.0,0.4806]
[1742936502045,0.1137043,87928.0,87927.0,1.16628371]
[1742936502248,0.1137043,87928.0,87927.0,1.52688371]
[1742936502443,0.3909243,87928.0,87927.0,1.52688371]
[1742936502950,0.3913243,87928.0,87927.0,1.52688371]
[1742936503448,0.3913243,87928.0,87927.0,1.64058931]
[1742936505253,0.40175641,87928.0,87927.0,1.64058931]
[1742936505452,0.40175641,87928.0,87927.0,1.75362931]
[1742936505953,0.40175641,87928.0,87927.0,1.4130256]
[1742936506340,0.40175641,87928.0,87927.0,1.2999856]
[1742936506542,0.40175641,87928.0,87927.0,1.4129456]
[1742936507757,0.68522,87928.0,87927.0,1.4129456]
[1742936508257,0.7989243,87928.0,87927.0,1.29924]
[1742936508659,0.7989243,87928.0,87927.0,1.30988656]
[1742936509355,0.7989243,87928.0,87927.0,1.29908]
[1742936510450,0.7989243,87928.0,87927.0,1.30972331]
[1742936510649,0.7989243,87928.0,87927.0,1.29908]
[1742936514656,0.7989243,87928.0,87927.0,2.89408]
[1742936515158,0.7989243,87928.0,87927.0,2.99038]
[1742936515960,0.7989243,87928.0,87927.0,2.79908]
[1742936516561,0.7989243,87928.0,87927.0,2.89278]
[1742936520159,0.7989243,87928.0,87927.0,2.62618]
[1742936520360,0.7989243,87928.0,87927.0,3.05618]
[1742936522067,0.7989243,87928.0,87927.0,2.96278]
[1742936522267,0.7989243,87928.0,87927.0,3.05618]
[1742936524475,0.7989243,87928.0,87927.0,3.06687151]
[1742936524973,0.7989243,87928.0,87927.0,3.05618]
[1742936525376,0.7989243,87928.0,87927.0,3.14778]
[1742936526472,0.7087243,87928.0,87927.0,3.14778]
[1742936527273,0.5224243,87928.0,87927.0,3.14778]
[1742936527665,0.5224243,87928.0,87927.0,3.15834942]
[1742936529371,0.5224243,87928.0,87927.0,2.01914942]
[1742936529570,0.40872,87928.0,87927.0,2.13285502]
[1742936529871,0.5217043,87928.0,87927.0,3.63285502]
[1742936530371,0.408,87928.0,87927.0,3.63285502]
[1742936531378,0.0004,87928.0,87927.0,3.63285502]
[1742936531777,0.1141043,87928.0,87927.0,3.63285502]
[1742936532074,0.1141043,87928.0,87927.0,3.83714577]
[1742936533272,0.0004,87928.0,87927.0,3.83714577]
[1742936533984,0.1141043,87928.0,87927.0,3.83714577]
[1742936534173,0.0004,87928.0,87927.0,3.83714577]
[1742936534886,0.1141043,87928.0,87927.0,2.33714577]
[1742936535271,0.1141043,87928.0,87927.0,2.11064017]
[1742936535481,0.1141043,87928.0,87927.0,1.85139075]
[1742936535677,0.3043643,87928.0,87927.0,1.85139075]
[1742936537587,0.3043643,87928.0,87927.0,1.96509635]
[1742936537973,0.3043643,87928.0,87927.0,1.75979075]
[1742936538576,0.3043643,87928.0,87927.0,1.87349635]
[1742936539188,0.3043643,87928.0,87927.0,1.6692056]
[1742936539484,0.3043643,87928.0,87927.0,1.5555]
[1742936543976,0.1137147,87920.0,87917.0,0.20429075]
[1742936544287,0.1146347,87920.0,87919.0,0.44321496]
[1742936544475,0.3038347,87920.0,87919.0,0.44321496]
[1742936544876,0.3038347,87920.0,87919.0,0.34321496]
[1742936545381,0.3979347,87920.0,87919.0,0.43381496]
[1742936546289,0.3070347,87920.0,87919.0,0.43381496]
[1742936546685,0.3070347,87920.0,87919.0,0.60381496]
[1742936547077,0.3070347,87920.0,87919.0,0.49169496]
[1742936547272,0.3070347,87920.0,87919.0,0.60381496]
[1742936547684,0.3070347,87920.0,87919.0,0.40109496]
[1742936547887,0.3070347,87920.0,87919.0,0.51321496]
[1742936548285,0.3070347,87920.0,87919.0,0.60521496]
[1742936550090,0.1137173,87918.0,87914.0,0.00017068]
[1742936550386,0.1137212,87915.0,87914.0,0.16081068]
[1742936550584,0.11484121,87915.0,87914.0,0.16081068]
[1742936550791,0.29844121,87915.0,87914.0,0.16081068]
[1742936551281,0.29844121,87915.0,87914.0,0.16041068]
[1742936551789,0.29844121,87915.0,87914.0,0.25401068]
[1742936553885,0.29798625,87915.0,87914.0,0.25401068]
[1742936554682,0.70558625,87915.0,87914.0,0.25401068]
[1742936556490,0.70558625,87915.0,87914.0,0.25361068]
[1742936558886,0.70513129,87915.0,87914.0,0.25361068]
[1742936559089,0.70513129,87915.0,87914.0,0.41361068]
[1742936561390,0.70513129,87915.0,87914.0,0.41321068]
[1742936563797,0.70467633,87915.0,87914.0,0.41321068]
[1742936566192,0.70467633,87915.0,87914.0,0.41281068]
[1742936568896,0.70422137,87915.0,87914.0,0.41281068]
[1742936569299,0.13449699,87923.0,87914.0,0.78423943]
[1742936569494,0.13525699,87923.0,87922.0,0.4745121]
[1742936569699,0.3608,87938.0,87931.0,0.1137005]
[1742936570008,0.28224361,87932.0,87931.0,2.0928]
[1742936571199,0.28178873,87932.0,87931.0,2.0928]
[1742936571602,0.28178873,87932.0,87931.0,2.0924]
[1742936571998,0.1136992,87932.0,87931.0,2.2805]
[1742936572194,0.1143392,87932.0,87931.0,2.2805]
[1742936572401,0.1136992,87932.0,87931.0,2.2805]
[1742936572589,0.1136992,87932.0,87931.0,0.66874]
[1742936572803,0.1143392,87932.0,87931.0,0.78086]
[1742936573003,0.2984392,87932.0,87931.0,0.78086]
[1742936573891,0.1143392,87932.0,87931.0,0.78086]
[1742936574094,0.1143392,87932.0,87931.0,0.78046]
[1742936574289,0.1143392,87932.0,87931.0,0.8941605]
[1742936574510,0.1136992,87932.0,87931.0,0.8941605]
[1742936575906,0.1136992,87932.0,87931.0,0.78046]
[1742936576494,0.1143392,87932.0,87931.0,0.78046]
[1742936576904,0.11388432,87932.0,87931.0,0.78046]
[1742936578006,0.11388432,87932.0,87931.0,0.8941605]
[1742936578397,0.11388432,87932.0,87931.0,0.78046]
[1742936579203,0.21118432,87932.0,87931.0,0.78046]
[1742936579408,0.11388432,87932.0,87931.0,0.78006]
[1742936582007,0.11342944,87932.0,87931.0,0.78006]
[1742936583594,0.30402944,87932.0,87931.0,0.78006]
[1742936584300,0.30402944,87932.0,87931.0,0.77966]
[1742936584702,0.30402944,87932.0,87931.0,0.8933605]
[1742936585101,0.11342944,87932.0,87931.0,0.8933605]
[1742936585697,0.00064,87932.0,87931.0,0.8933605]
[1742936586212,0.113698,87933.0,87932.0,0.1136992]
[1742936586408,0.113698,87933.0,87932.0,0.5743392]
[1742936586611,0.113698,87933.0,87932.0,0.7638392]
[1742936586816,0.11324312,87933.0,87932.0,2.2638392]
[1742936587315,0.0568478,87935.0,87934.0,0.1136966]
[1742936587512,0.0568478,87935.0,87934.0,0.5743766]
[1742936587812,0.0568478,87935.0,87934.0,0.7638766]
[1742936588215,0.0568478,87935.0,87934.0,2.2638766]
[1742936589313,0.0568478,87935.0,87934.0,2.2634766]
[1742936589705,0.1136936,87937.0,87936.0,0.1136927]
[1742936589914,0.1136936,87937.0,87936.0,0.5843327]
[1742936590117,0.1143336,87937.0,87936.0,0.5843327]
[1742936590311,0.1143336,87937.0,87936.0,2.0843327]
[1742936590517,0.1136936,87937.0,87936.0,2.0843327]
[1742936590819,0.1136883,87941.0,87940.0,0.1136875]
[1742936591021,0.1136862,87942.0,87941.0,0.113685]
[1742936591319,0.0004,87944.0,87943.0,0.1136849]
[1742936591516,0.11468371,87944.0,87943.0,0.52064]
[1742936592020,0.29428371,87944.0,87943.0,0.52064]
[1742936592213,0.29428371,87944.0,87943.0,0.6343249]
[1742936592718,0.11468371,87944.0,87943.0,0.6343249]
[1742936593120,0.00100001,87944.0,87943.0,2.1343249]
[1742936593309,0.0004,87944.0,87943.0,2.1343249]
[1742936593911,0.1140837,87944.0,87943.0,2.1343249]
[1742936594410,0.1147637,87944.0,87943.0,2.1343249]
[1742936595407,0.2068637,87944.0,87943.0,2.1343249]
[1742936595621,0.2993637,87944.0,87943.0,2.1343249]
[1742936596113,0.2986837,87944.0,87943.0,2.1343249]
[1742936597611,0.2993237,87944.0,87943.0,2.1343249]
[1742936601018,0.0568377,87951.0,87948.0,0.1705144]
[1742936601210,0.1873,87950.0,87949.0,0.1705157]
[1742936601407,0.1873,87950.0,87949.0,1.2144957]
[1742936601913,0.18790001,87950.0,87949.0,1.2144957]
[1742936602112,0.18790001,87950.0,87949.0,2.7144957]
[1742936602322,0.3009759,87950.0,87949.0,2.7144957]
[1742936602618,0.1873,87950.0,87949.0,2.7144957]
[1742936602825,0.3009759,87950.0,87949.0,2.7144957]
[1742936603021,0.3005211,87950.0,87949.0,2.7144957]
[1742936605523,0.3005211,87950.0,87949.0,2.7140957]
[1742936605828,0.0942,87950.0,87949.0,2.3980385]
[1742936606133,0.2078759,87950.0,87949.0,2.45368]
[1742936606322,0.2078759,87950.0,87949.0,2.54608]
[1742936606721,0.2997759,87950.0,87949.0,2.54608]
[1742936607025,0.2997759,87950.0,87949.0,2.6597572]
[1742936607422,0.2997759,87950.0,87949.0,2.7530572]
[1742936608126,0.0937452,87950.0,87949.0,2.7530572]
[1742936608631,0.2041733,87952.0,87951.0,0.1136746]
[1742936608818,0.2041733,87952.0,87951.0,0.5944746]
[1742936609018,0.2041733,87952.0,87951.0,0.7784746]
[1742936609221,0.2041733,87952.0,87951.0,2.2784746]
[1742936610420,0.2041733,87952.0,87951.0,2.2780746]
[1742936610928,0.2041733,87952.0,87951.0,2.28646681]
[1742936611120,0.2935733,87952.0,87951.0,2.28646681]
[1742936612922,0.2935733,87952.0,87951.0,2.28692161]
[1742936613122,0.2944533,87952.0,87951.0,2.28692161]
[1742936613621,0.2935733,87952.0,87951.0,2.28692161]
[1742936613823,0.2943733,87952.0,87951.0,2.28692161]
[1742936617444,0.2943733,87952.0,87951.0,2.39900161]
[1742936618132,0.2935733,87952.0,87951.0,2.39900161]
[1742936618331,0.2943733,87952.0,87951.0,2.39900161]
[1742936625229,0.2943733,87952.0,87951.0,2.39896161]
[1742936625631,0.2935733,87952.0,87951.0,2.39896161]
[1742936625840,0.2943733,87952.0,87951.0,2.39896161]
[1742936630829,0.2943733,87952.0,87951.0,2.28568701]
[1742936631037,0.39511015,87952.0,87951.0,2.60365236]
[1742936635049,0.73687085,87958.0,87957.0,0.1136669]
[1742936635349,0.5319397,87958.0,87957.0,0.62994748]
[1742936635542,0.53233971,87958.0,87957.0,0.80944748]
[1742936635736,0.41867281,87958.0,87957.0,0.80944748]
[1742936636442,0.1136587,87964.0,87963.0,0.1136578]
[1742936636650,0.1150187,87964.0,87963.0,0.7456978]
[1742936636831,0.1150187,87964.0,87963.0,0.7470578]
[1742936636832,0.1718483,87964.0,87963.0,0.7470578]
[1742936637038,0.2559483,87964.0,87963.0,0.64456397]
[1742936637233,0.34333359,87964.0,87963.0,0.75686307]
[1742936638647,0.34333359,87964.0,87963.0,0.63204]
[1742936638835,0.43033359,87964.0,87963.0,0.63204]
[1742936639246,0.43033359,87964.0,87963.0,0.7456991]
[1742936639746,0.43033359,87964.0,87963.0,0.63164]
[1742936640144,0.43033359,87964.0,87963.0,0.7452991]
[1742936642246,0.42987888,87964.0,87963.0,0.7452991]
[1742936642448,0.43123888,87964.0,87963.0,0.7466591]
[1742936643644,0.43123888,87964.0,87963.0,0.633]
[1742936644350,0.43123888,87964.0,87963.0,0.7466591]
[1742936644553,0.43123888,87964.0,87963.0,0.7462591]
[1742936644949,0.43123888,87964.0,87963.0,0.6326]
[1742936645145,0.43123888,87964.0,87963.0,0.7462591]
[1742936646253,0.43123888,87964.0,87963.0,0.6326]
[1742936647748,0.43078417,87964.0,87963.0,0.7242]
[1742936649156,0.43078417,87964.0,87963.0,0.8378591]
[1742936649456,0.34378417,87964.0,87963.0,0.8378591]
[1742936649647,0.34378417,87964.0,87963.0,0.7242]
[1742936650244,0.34378417,87964.0,87963.0,0.8378591]
[1742936650450,0.34378417,87964.0,87963.0,0.8374591]
[1742936650851,0.0705,87966.0,87964.0,0.1136565]
[1742936651051,0.0705,87966.0,87965.0,0.1136565]
[1742936651252,0.0705,87966.0,87965.0,0.8111165]
[1742936651557,0.0705,87966.0,87965.0,2.35626802]
[1742936652352,0.1841552,87966.0,87965.0,2.35626802]
[1742936652749,0.0705,87966.0,87965.0,2.35626802]
[1742936653250,0.07004529,87966.0,87965.0,2.35626802]
[1742936653453,0.1350894,87968.0,87965.0,2.35626802]
[1742936653454,0.248742,87968.0,87967.0,0.1136539]
[1742936653644,0.248742,87968.0,87967.0,0.6654139]
[1742936653847,0.248742,87968.0,87967.0,0.8485139]
[1742936654759,0.1136526,87968.0,87967.0,0.7485139]
[1742936654949,0.1136526,87968.0,87967.0,0.8485139]
[1742936655348,0.02712,87971.0,87970.0,0.1136501]
[1742936655551,0.056819,87980.0,87975.0,0.1132436]
[1742936655750,0.4076,87983.0,87975.0,0.6970036]
[1742936655952,0.4076,87983.0,87975.0,0.8801036]
[1742936656148,0.4076,87983.0,87975.0,0.92521774]
[1742936656358,0.4076,87983.0,87978.0,0.1136397]
[1742936656556,0.2487278,87979.0,87978.0,0.6254797]
[1742936656761,0.2487278,87979.0,87978.0,0.8037797]
[1742936657452,0.1350894,87979.0,87978.0,0.8037797]
[1742936657961,0.16819326,87985.0,87984.0,0.113632]
[1742936658268,0.0568137,87988.0,87984.0,0.113632]
[1742936658269,0.1136237,87991.0,87986.0,0.0568143]
[1742936658456,0.0004,87992.0,87989.0,0.1136255]
[1742936658761,0.02403009,87990.0,87989.0,1.1061855]
[1742936658961,0.02403009,87990.0,87989.0,1.32954633]
[1742936659263,0.0004,87992.0,87991.0,0.2136229]
[1742936659561,0.0004,87992.0,87991.0,0.77052373]
[1742936659760,0.20244565,88010.0,87991.0,0.80690083]
[1742936660065,0.06999,88027.0,88021.0,0.1703732]
[1742936660356,0.1972816,88023.0,88022.0,0.3171829]
[1742936660558,0.2857816,88023.0,88022.0,0.8489829]
[1742936660764,0.2857816,88023.0,88022.0,0.7354]
[1742936660951,0.2857816,88023.0,88022.0,2.2354]
[1742936661352,0.3759816,88023.0,88022.0,0.74397296]
[1742936661657,0.3759816,88023.0,88022.0,0.65237296]
[1742936661963,0.3759816,88023.0,88022.0,0.54037296]
[1742936662165,0.3759816,88023.0,88022.0,0.76595586]
[1742936662361,0.01401699,88089.0,88022.0,0.76595586]
[1742936662362,0.2707992,88031.0,88023.0,0.1135816]
[1742936662562,0.24738584,88024.0,88023.0,0.7053416]
[1742936662757,0.23863451,88024.0,88023.0,0.7920416]
[1742936662956,0.35221481,88024.0,88023.0,2.07846]
[1742936663154,0.35221481,88024.0,88023.0,0.8914016]
[1742936663354,0.3609681,88024.0,88023.0,0.8914016]
[1742936663754,0.35221481,88024.0,88023.0,0.8914016]
[1742936663955,0.1139803,88024.0,88023.0,0.8914016]
[1742936664155,0.0004,88024.0,88023.0,0.8914016]
[1742936664562,0.1139803,88024.0,88023.0,0.8040016]
[1742936664766,0.0004,88024.0,88023.0,0.8040016]
[1742936664970,0.1139803,88024.0,88023.0,0.8040016]
[1742936665165,0.2970803,88024.0,88023.0,0.8040016]
[1742936665360,0.1835,88024.0,88023.0,0.8040016]
[1742936666270,0.0004,88024.0,88023.0,0.8942016]
[1742936666462,0.4076,88039.0,88037.0,0.1135636]
[1742936666463,0.2063673,88038.0,88037.0,0.1135636]
[1742936666658,0.181,88038.0,88037.0,1.0863236]
[1742936666863,0.2945623,88038.0,88037.0,1.0881236]
[1742936667771,0.181,88038.0,88037.0,1.0881236]
[1742936668777,0.2945623,88038.0,88037.0,1.0881236]
[1742936669169,0.181,88038.0,88037.0,1.09895196]
[1742936670063,0.2945623,88038.0,88037.0,1.09895196]
[1742936670264,0.181,88038.0,88037.0,1.09895196]
[1742936670464,0.2945623,88038.0,88037.0,1.09895196]
[1742936671377,0.181,88038.0,88037.0,1.09895196]
[1742936672278,0.2945623,88038.0,88037.0,1.09895196]
[1742936672867,0.2945623,88038.0,88037.0,1.0881236]
[1742936674774,0.2945623,88038.0,88037.0,1.09903172]
[1742936675165,0.5676284,88067.0,88037.0,1.09903172]
[1742936675166,0.0567692,88057.0,88054.0,0.1135416]
[1742936675364,0.1135403,88055.0,88054.0,0.61256]
[1742936676372,0.1135403,88055.0,88054.0,0.7261016]
[1742936676575,0.2954403,88055.0,88054.0,0.7261016]
[1742936677082,0.2954403,88055.0,88054.0,0.61256]
[1742936677570,0.2954403,88055.0,88054.0,0.7261016]
[1742936679272,0.2954403,88055.0,88054.0,0.61256]
[1742936679476,0.2954403,88055.0,88054.0,0.7261016]
[1742936680370,0.3820403,88055.0,88054.0,0.7261016]
[1742936680767,0.3820403,88055.0,88054.0,1e-08]
[1742936680978,0.113552,88046.0,88045.0,0.11188]
[1742936681173,0.11415201,88046.0,88045.0,0.56188]
[1742936681374,0.11415201,88046.0,88045.0,0.45128]
[1742936681677,0.00060001,88046.0,88045.0,0.5648332]
[1742936681878,0.198452,88046.0,88045.0,0.6593332]
[1742936682179,0.19905201,88046.0,88045.0,0.6593332]
[1742936682380,0.28695201,88046.0,88045.0,0.6593332]
[1742936683578,0.28695201,88046.0,88045.0,0.6589332]
[1742936684371,0.28695201,88046.0,88045.0,0.7510332]
[1742936684773,0.28695201,88046.0,88045.0,0.6589332]
[1742936685877,0.28649771,88046.0,88045.0,0.6589332]
[1742936687868,0.38099771,88046.0,88045.0,0.56276]
[1742936688688,0.38099771,88046.0,88045.0,0.56236]
[1742936689975,0.38099771,88046.0,88045.0,0.45048]
[1742936690473,0.38975579,88046.0,88045.0,0.45048]
[1742936690984,0.38930149,88046.0,88045.0,0.45048]
[1742936691383,0.38054341,88046.0,88045.0,0.26128]
[1742936693480,0.38054341,88046.0,88045.0,0.26088]
[1742936694489,0.38054341,88046.0,88034.0,0.27238767]
[1742936694490,0.82459141,88046.0,88034.0,0.27238767]
[1742936694687,0.4743661,88035.0,88034.0,0.00096]
[1742936694991,0.5871661,88035.0,88034.0,0.00096]
[1742936695188,0.11357,88032.0,88031.0,0.00045438]
[1742936695387,0.47497001,88032.0,88031.0,0.04000008]
[1742936695688,0.47497001,88032.0,88031.0,8e-08]
[1742936695887,0.47497001,88032.0,88031.0,1e-07]
[1742936696186,0.1135739,88029.0,88028.0,0.34020381]
[1742936696375,0.11415953,88029.0,88028.0,0.53088381]
[1742936696580,0.12490432,88029.0,88028.0,0.53088381]
[1742936696983,0.11415953,88029.0,88028.0,0.53088381]
[1742936697692,0.22603953,88029.0,88028.0,0.53088381]
[1742936698191,0.22603953,88029.0,88028.0,0.19068]
[1742936698488,0.22603953,88029.0,88028.0,0.19]
[1742936698687,0.22558523,88029.0,88028.0,0.19]
[1742936699485,0.11370523,88029.0,88028.0,0.19]
[1742936699883,0.11370523,88029.0,88028.0,0.1906]
[1742936700087,0.20150523,88029.0,88028.0,0.19]
[1742936700290,0.20150523,88029.0,88028.0,0.1906]
[1742936701185,0.11370523,88029.0,88028.0,0.1906]
[1742936701385,0.11370523,88029.0,88028.0,0.19]
[1742936701589,0.11370523,88029.0,88028.0,0.1902]
[1742936703993,0.11325085,88029.0,88028.0,0.1902]
[1742936705583,0.20255085,88029.0,88028.0,0.1548743]
[1742936706589,0.20255085,88029.0,88028.0,0.1544743]
[1742936707699,0.28845085,88029.0,88028.0,0.1544743]
[1742936708994,0.28799647,88029.0,88028.0,0.1544743]
[1742936709997,0.69559647,88029.0,88028.0,0.1544743]
[1742936711399,0.69559647,88029.0,88028.0,0.2463743]
[1742936711699,0.69559647,88029.0,88028.0,0.2459743]
[1742936713093,0.60629647,88029.0,88028.0,0.2459743]
[1742936713399,0.11279647,88029.0,88028.0,0.8773743]
[1742936713595,0.11175646,88029.0,88028.0,0.8773743]
[1742936713895,0.11175646,88029.0,88028.0,2.4662743]
[1742936714095,0.20020208,88029.0,88028.0,0.9662743]
[1742936714295,0.11226209,88029.0,88028.0,0.9662743]
[1742936714499,0.11130208,88029.0,88028.0,0.9662743]
[1742936715891,0.11230208,88029.0,88028.0,0.9662743]
[1742936716604,0.11230208,88029.0,88028.0,0.9658743]
[1742936717394,0.11130208,88029.0,88028.0,0.9658743]
[1742936717697,0.11226209,88029.0,88028.0,1.0794495]
[1742936717901,0.11130208,88029.0,88028.0,1.0777543]
[1742936718296,0.11234209,88029.0,88028.0,1.0777543]
[1742936718799,0.11130208,88029.0,88028.0,1.1913295]
[1742936719008,0.1108477,88029.0,88028.0,1.1913295]
[1742936719505,0.1108477,88029.0,88028.0,1.0777543]
[1742936721406,0.1108477,88029.0,88028.0,1.0773543]
[1742936721801,0.11180771,88029.0,88028.0,1.0773543]
[1742936722006,0.00096001,88029.0,88028.0,1.1909295]
[1742936722203,0.1135709,88034.0,88033.0,0.1703472]
[1742936722406,0.00096001,88034.0,88033.0,0.700953]
[1742936722600,0.1135538,88045.0,88044.0,0.1135532]
[1742936722795,0.1135538,88045.0,88044.0,1.0869132]
[1742936723002,0.00068,88045.0,88044.0,2.5869132]
[1742936723307,0.24853749,88046.0,88045.0,0.1135532]
[1742936723608,0.24853749,88046.0,88045.0,0.6135532]
[1742936723906,0.24853749,88046.0,88045.0,0.6143532]
[1742936724111,0.1135514,88049.0,88048.0,0.1135481]
[1742936724308,0.1143114,88049.0,88048.0,0.64550447]
[1742936725812,0.00076,88049.0,88048.0,0.64550447]
[1742936726012,0.1135475,88050.0,88049.0,0.1703189]
[1742936726211,0.16844745,88052.0,88051.0,0.1135455]
[1742936726398,0.06988,88057.0,88053.0,0.1135429]